bitfinex-derivatives/quotes_ETHF0:USTF0_20260203
["timestamp","ask_amount","ask_price","bid_price","bid_amount"]
[1770119677784,3.85918923,2280.2,2279.8,2.51840965]
[1770119677984,3.85918923,2280.1,2279.9,3.788]
[1770119678285,41.66834193,2280.3,2280.0,3.788]
[1770119678485,3.84412117,2280.2,2279.9,1.736]
[1770119678682,3.84412117,2280.1,2279.9,1.736]
[1770119678882,3.84412117,2280.0,2279.9,1.736]
[1770119680684,38.35701427,2280.3,2280.0,0.98626926]
[1770119680887,0.00434659,2280.7,2280.1,0.21951]
[1770119681086,2.57791674,2280.7,2280.1,0.21951]
[1770119681286,27.84111674,2280.7,2280.1,0.21951]
[1770119681485,2.57357015,2280.6,2280.1,0.21951]
[1770119681897,27.83677015,2280.6,2280.1,0.21951]
[1770119682087,25.2632,2280.6,2280.1,0.22346484]
[1770119682888,25.2632,2280.6,2280.1,4.32553887]
[1770119683387,27.83479273,2280.6,2280.1,0.21951]
[1770119685891,0.00434659,2280.7,2280.1,0.21951]
[1770119686090,25.26754659,2280.7,2280.1,0.21951]
[1770119687284,27.84111674,2280.7,2280.1,0.21951]
[1770119687484,2.57357015,2280.6,2280.1,0.21951]
[1770119687886,25.26754659,2280.7,2280.1,0.21951]
[1770119687887,2.57357015,2280.4,2280.1,0.21951]
[1770119690689,2.57238948,2280.6,2280.1,0.21951]
[1770119690892,2.57238948,2280.6,2280.1,4.16434512]
[1770119690893,2.57238948,2280.5,2280.1,4.16434512]
[1770119693395,2.5730625,2280.3,2280.1,0.21951]
[1770119693797,25.2632,2280.2,2280.1,0.21951]
[1770119694090,2.57740909,2280.7,2280.1,3.94483512]
[1770119694290,2.57740909,2280.7,2280.4,0.21948]
[1770119694496,2.5730625,2280.6,2280.4,0.21948]
[1770119699303,0.00434659,2280.7,2280.4,0.21948]
[1770119699504,19.74810661,2280.7,2280.4,0.21948]
[1770119700808,3.29037,2281.6,2280.4,5.3598047]
[1770119701010,19.74376002,2281.5,2280.4,5.3598047]
[1770119701203,19.74376002,2281.5,2280.7,2.51818038]
[1770119701404,2.34309671,2282.4,2281.4,0.21938]
[1770119701606,14.1874382,2282.9,2281.4,0.21938]
[1770119701607,2.34309671,2281.9,2281.4,0.21938]
[1770119701908,2.34309671,2282.2,2281.6,5.3596847]
[1770119702200,2.34309671,2282.2,2281.6,2.73754038]
[1770119702402,2.34309671,2282.2,2281.6,0.21936]
[1770119702403,2.34309671,2282.1,2281.6,0.21936]
[1770119702805,2.34309671,2281.9,2281.6,0.21936]
[1770119703005,2.34858509,2281.9,2281.6,0.21936]
[1770119703303,2.34309671,2281.8,2281.4,0.00418667]
[1770119703808,2.34309671,2281.6,2281.2,0.21941]
[1770119704204,0.00548838,2281.9,2281.3,5.68503111]
[1770119704403,19.73957335,2281.8,2281.4,2.51818038]
[1770119704605,0.00548838,2281.9,2281.4,4.10447856]
[1770119704904,22.08815844,2281.9,2281.4,0.22483246]
[1770119705100,2.34309671,2281.8,2281.4,0.22483246]
[1770119705497,0.00548838,2281.9,2281.4,2.74301284]
[1770119705700,2.34309671,2282.6,2281.5,8.42892825]
[1770119705901,2.34309671,2282.3,2281.6,2.51818038]
[1770119706305,2.34309671,2282.1,2281.5,0.21937]
[1770119706506,2.34309671,2282.1,2281.4,0.00544246]
[1770119706507,2.34309671,2282.0,2281.4,0.00544246]
[1770119706703,21.26766527,2282.0,2281.4,0.00544246]
[1770119706912,2.34309671,2281.9,2281.4,0.00544246]
[1770119707310,18.91931647,2281.8,2281.4,0.00544246]
[1770119707510,21.26241318,2281.8,2281.4,0.00544246]
[1770119708014,2.34309671,2281.7,2281.4,0.00544246]
[1770119708213,2.34309671,2281.7,2281.2,0.21941]
[1770119708414,2.34309671,2281.6,2281.2,0.21941]
[1770119708915,2.34309671,2281.4,2281.0,3.94599866]
[1770119709116,2.34309671,2281.4,2281.2,0.21941]
[1770119709312,2.34309671,2281.3,2281.0,3.94978459]
[1770119709507,18.91931647,2281.4,2281.0,0.00378593]
[1770119709710,18.91931647,2281.4,2281.0,2.52196631]
[1770119710211,18.91931647,2281.4,2281.0,0.00378593]
[1770119710412,2.34309671,2281.3,2281.0,0.00378593]
[1770119710616,2.34309671,2281.3,2280.9,8.76914432]
[1770119711418,2.34309671,2281.3,2280.9,6.147]
[1770119711716,2.34309671,2281.3,2280.9,6.15099799]
[1770119713817,18.69446401,2281.3,2280.9,8.88860837]
[1770119714617,2.34309671,2281.6,2281.0,2.51818038]
[1770119714916,18.69446401,2281.5,2281.0,2.51818038]
[1770119715515,21.03756072,2281.5,2281.0,2.51818038]
[1770119716619,21.03756072,2281.5,2281.0,2.73761038]
[1770119719314,2.34309671,2281.9,2281.2,2.73758038]
[1770119719519,2.34309671,2281.8,2281.2,2.73758038]
[1770119719920,21.03756072,2281.7,2281.2,2.73758038]
[1770119720122,2.34309671,2281.7,2281.2,0.2194]
[1770119720324,2.48158897,2281.5,2281.2,0.2194]
[1770119720823,18.69446401,2281.5,2281.2,0.2194]
[1770119721821,21.17605298,2281.5,2281.2,0.2194]
[1770119722617,2.48158897,2281.7,2281.2,0.2194]
[1770119723016,20.73454298,2281.6,2281.2,0.2194]
[1770119723321,2.48158897,2281.6,2281.2,0.2194]
[1770119723521,18.25295401,2281.5,2281.2,0.2194]
[1770119724726,20.73454298,2281.5,2281.2,0.2194]
[1770119726129,18.25295401,2281.5,2281.2,0.2194]
[1770119727025,17.55162795,2281.9,2281.7,0.21936]
[1770119727231,17.06667795,2282.9,2282.1,0.21931]
[1770119727528,17.06667795,2282.8,2282.2,2.8389343]
[1770119727727,17.02965206,2283.8,2282.3,2.8389243]
[1770119727728,17.06667795,2283.2,2282.3,2.8389243]
[1770119727928,22.19467795,2283.7,2282.3,2.8389243]
[1770119728130,40.8,2283.6,2282.3,2.8389243]
[1770119728522,17.06667795,2283.5,2282.3,2.6196243]
[1770119728722,0.2192,2283.4,2282.2,0.04644331]
[1770119729127,2.48158897,2283.3,2282.2,3.97673671]
[1770119729326,2.48158897,2283.3,2282.2,0.04644331]
[1770119729529,2.48158897,2283.3,2282.2,3.97673671]
[1770119730323,0.2192,2283.4,2282.2,6.47219695]
[1770119730324,2.48158897,2283.1,2282.2,6.47219695]
[1770119730528,2.48158897,2283.1,2282.1,10.17383512]
[1770119730728,2.48158897,2282.9,2282.2,3.92929176]
[1770119731434,17.06667795,2282.8,2282.3,2.54190355]
[1770119731632,2.48158897,2282.7,2282.1,6.44832]
[1770119731831,2.48158897,2282.7,2282.2,3.92805207]
[1770119733233,2.48158897,2282.7,2282.1,6.44832]
[1770119733532,17.06667795,2282.6,2282.1,6.44832]
[1770119733732,17.06667795,2282.6,2282.1,8.99022355]
[1770119737232,2.48158897,2282.5,2282.1,6.229]
[1770119737437,2.48158897,2282.5,2281.8,2.57318099]
[1770119737633,17.06667795,2282.4,2281.8,2.57318099]
[1770119738337,2.48158897,2282.5,2281.8,2.57318099]
[1770119738538,17.06667795,2282.4,2281.8,6.51801611]
[1770119738738,17.06667795,2283.0,2281.9,2.57318099]
[1770119739232,1.36625477,2282.8,2281.7,0.21936]
[1770119739637,17.06667795,2282.7,2281.7,0.21936]
[1770119741235,17.06667795,2282.7,2281.5,2.57318099]
[1770119747141,17.06667795,2282.7,2281.5,6.49583833]
[1770119747342,17.06667795,2282.7,2281.5,2.57318099]
[1770119748341,0.21928,2282.5,2281.3,6.49918481]
[1770119748639,0.21928,2282.5,2281.4,3.92600382]
[1770119748836,17.06667795,2282.4,2281.3,2.57318099]
[1770119749735,17.28597795,2282.4,2281.3,2.57318099]
[1770119750742,17.28597795,2282.4,2281.1,2.57294251]
[1770119750743,0.2193,2282.3,2281.1,2.57294251]
[1770119750941,0.21931,2282.2,2281.0,3.068]
[1770119751141,17.28598795,2282.2,2281.0,3.068]
[1770119751337,58.08598795,2282.2,2281.0,3.068]
[1770119751844,58.08598795,2282.2,2281.0,5.64094251]
[1770119752639,41.01931,2282.2,2281.0,5.64094251]
[1770119753345,0.21933,2282.1,2281.0,5.64094251]
[1770119753545,17.29036793,2282.1,2281.0,3.068]
[1770119753745,17.29036793,2282.1,2281.0,5.64071958]
[1770119755145,17.29036793,2282.1,2281.0,2.57271958]
[1770119755642,27.57936793,2282.1,2281.0,2.57271958]
[1770119761656,27.57936793,2282.1,2281.3,2.57271958]
[1770119761657,17.07103793,2282.1,2281.3,2.57271958]
[1770119762061,17.07103793,2282.1,2281.4,2.57271958]
[1770119762261,17.07103793,2282.1,2281.5,2.57271958]
[1770119763463,17.07103793,2282.1,2281.3,0.2194]
[1770119763760,17.07103793,2282.1,2281.3,2.79211958]
[1770119766759,17.07103793,2282.1,2281.4,2.57271958]
[1770119767654,0.00435998,2282.1,2281.4,2.57271958]
[1770119768562,17.06667795,2282.0,2281.4,2.57271958]
[1770119771669,17.06667795,2282.0,2281.5,2.57271958]
[1770119777770,17.06667795,2282.0,2281.6,2.57271958]
[1770119778971,17.06667795,2282.0,2281.5,1.736]
[1770119779472,1.3670475,2281.9,2281.0,1.68754451]
[1770119780070,1.3670475,2281.9,2281.0,4.26026409]
[1770119783376,1.3670475,2281.9,2281.0,4.21226409]
[1770119784378,1.3670475,2281.9,2281.1,2.57359052]
[1770119784677,17.06667795,2281.8,2281.1,2.57359052]
[1770119791879,17.06667795,2281.8,2281.3,2.57359052]
[1770119792080,17.06667795,2281.8,2281.2,1.3670475]
[1770119792081,17.06667795,2281.8,2281.5,2.57359052]
[1770119793282,17.01876644,2281.8,2281.5,2.57359052]
[1770119794185,2.41233145,2281.8,2281.6,3.94063802]
[1770119794485,2.41233145,2281.8,2281.7,2.57359052]
[1770119795881,5.22505508,2282.8,2281.7,2.57359052]
[1770119795882,39.50427139,2283.0,2281.8,2.57359052]
[1770119796186,2.41233145,2282.9,2282.0,2.57359052]
[1770119796782,2.41233145,2282.9,2282.1,2.57359052]
[1770119796979,2.41747866,2282.9,2282.2,2.57359052]
[1770119797686,2.41233145,2282.8,2282.2,2.57359052]
[1770119798388,2.41233145,2282.7,2282.2,2.57359052]
[1770119803290,1.3670475,2282.5,2282.0,1.63954451]
[1770119803594,1.3670475,2282.5,2281.7,2.57359052]
[1770119803595,0.00435998,2282.3,2281.7,2.57359052]
[1770119803794,0.00435998,2282.2,2281.7,2.57359052]
[1770119804092,0.00435998,2282.3,2281.7,2.57359052]
[1770119804285,0.00435998,2282.2,2281.7,2.57359052]
[1770119804486,2.41233145,2282.4,2281.8,2.57359052]
[1770119804893,2.41669143,2282.4,2281.8,2.57359052]
[1770119807398,2.41233145,2282.4,2281.8,2.57359052]
[1770119807598,2.41669143,2282.4,2281.8,2.57359052]
[1770119809503,0.00435998,2282.3,2281.8,2.57359052]
[1770119809700,2.41233145,2282.2,2281.8,2.57359052]
[1770119812599,2.41233145,2282.1,2281.8,2.57359052]
[1770119812803,0.00435998,2282.5,2281.8,2.57359052]
[1770119813305,2.41669143,2282.4,2281.8,2.57359052]
[1770119813508,0.00435998,2282.5,2281.8,2.57359052]
[1770119813904,2.41669143,2282.4,2281.8,2.57359052]
[1770119814105,0.00435998,2282.5,2281.8,2.57359052]
[1770119814304,0.00435998,2282.5,2281.8,5.18909536]
[1770119814505,2.41669143,2282.4,2281.9,2.57264788]
[1770119814705,2.41233145,2282.6,2281.9,2.57264788]
[1770119814907,2.41669143,2282.6,2281.9,2.57264788]
[1770119815108,0.00435998,2282.5,2281.9,2.57264788]
[1770119815307,0.00435998,2282.4,2281.9,2.57264788]
[1770119815509,0.00435998,2282.5,2281.9,2.57264788]
[1770119815907,0.00435998,2282.4,2281.9,2.57264788]
[1770119816109,0.00435998,2282.5,2281.9,2.57264788]
[1770119816602,0.00435998,2282.4,2281.9,2.57264788]
[1770119816809,0.00435998,2282.5,2281.9,2.57264788]
[1770119817416,0.00435998,2282.4,2281.9,2.57264788]
[1770119817712,0.00435998,2282.5,2281.9,2.57264788]
[1770119818214,2.41669143,2282.4,2281.9,2.57264788]
[1770119818413,0.00435998,2282.6,2281.9,2.57264788]
[1770119818615,0.00435998,2282.5,2281.9,2.57264788]
[1770119819015,0.00435998,2282.6,2281.9,2.79198788]
[1770119819211,0.00435998,2282.6,2281.9,5.40749272]
[1770119819411,0.00435998,2282.5,2282.0,2.57264788]
[1770119819705,2.41233145,2282.7,2282.0,2.57264788]
[1770119819910,0.00435998,2282.5,2282.0,2.57264788]
[1770119820415,0.00514721,2282.9,2282.2,2.57264788]
[1770119820615,0.00514721,2282.9,2282.2,2.79195788]
[1770119820616,0.00435998,2282.7,2282.2,2.79195788]
[1770119820914,2.41233145,2282.8,2282.1,2.62064788]
[1770119820915,0.00435998,2282.5,2282.1,2.62064788]
[1770119821413,0.00435998,2282.3,2282.1,0.048]
[1770119821606,0.00435998,2282.4,2282.0,2.57264788]
[1770119822012,1.3670475,2282.8,2282.0,2.57264788]
[1770119822013,0.00435998,2282.3,2282.0,2.57264788]
[1770119822213,0.00435998,2282.5,2282.0,2.57264788]
[1770119822815,0.00435998,2282.4,2282.0,2.57264788]
[1770119823015,0.00435998,2282.5,2282.0,2.57264788]
[1770119823415,0.00435998,2282.4,2282.0,2.57264788]
[1770119823618,0.00435998,2282.5,2282.0,5.18815272]
[1770119823812,0.00435998,2282.5,2282.1,2.57264788]
[1770119824017,0.00435998,2282.4,2282.2,2.57264788]
[1770119824515,0.00435998,2282.3,2282.2,2.57264788]
[1770119824711,0.00435998,2282.4,2282.2,2.57264788]
[1770119824913,0.00435998,2282.3,2282.2,2.57264788]
[1770119825108,2.41233145,2282.7,2282.2,2.57264788]
[1770119825109,0.00435998,2282.4,2282.2,2.57264788]
[1770119825518,0.00435998,2282.3,2282.2,2.57264788]
[1770119825716,0.00435998,2282.4,2282.2,2.57264788]
[1770119826117,0.00435998,2282.3,2282.2,2.57264788]
[1770119826417,0.00435998,2282.4,2282.2,2.57264788]
[1770119826919,0.00435998,2282.3,2282.2,2.57264788]
[1770119827119,0.00435998,2282.4,2282.2,2.57264788]
[1770119827619,0.00435998,2282.3,2282.2,2.57264788]
[1770119827919,0.00435998,2282.5,2282.2,2.57264788]
[1770119828417,0.00435998,2282.3,2282.2,2.57264788]
[1770119828622,0.00435998,2282.5,2282.2,2.57264788]
[1770119829920,0.00435998,2282.3,2282.2,2.57264788]
[1770119830121,2.41233145,2282.8,2282.2,2.57264788]
[1770119830122,0.00435998,2282.5,2282.2,2.57264788]
[1770119830623,0.00435998,2282.3,2282.2,2.57264788]
[1770119830821,0.00435998,2282.5,2282.2,2.57264788]
[1770119831323,0.00435998,2282.3,2282.2,2.57264788]
[1770119831523,0.00435998,2282.5,2282.2,2.57264788]
[1770119831822,3.77937895,2282.8,2282.1,2.62072945]
[1770119832021,0.00435998,2282.4,2282.0,2.57264788]
[1770119832416,0.00435998,2282.2,2282.0,2.57264788]
[1770119832724,41.50559494,2282.9,2282.1,2.541866]
[1770119832916,2.00131355,2282.9,2282.1,2.541866]
[1770119833220,2.00131355,2282.9,2282.5,2.541866]
[1770119833221,0.00514721,2282.9,2282.5,2.541866]
[1770119833421,0.00514721,2282.9,2282.5,2.54576428]
[1770119838524,41.28692621,2283.3,2282.5,2.54576428]
[1770119838525,39.28503139,2283.3,2282.5,2.54576428]
[1770119838726,41.29189636,2283.3,2282.5,2.54576428]
[1770119839626,41.29507266,2283.3,2282.5,2.54576428]
[1770119840726,2.0087336,2282.8,2282.0,2.62280726]
[1770119840926,2.2279936,2282.8,2281.9,2.43834513]
[1770119841628,2.2279936,2282.8,2281.9,2.44247844]
[1770119842320,2.02211602,2282.7,2281.9,2.44247844]
[1770119843122,2.23726271,2282.5,2281.5,2.43834513]
[1770119843428,0.37043183,2282.3,2281.5,2.43834513]
[1770119844223,0.37043183,2282.3,2281.5,2.44183327]
[1770119844424,0.38299028,2281.9,2281.1,2.43834513]
[1770119845330,0.21933,2282.1,2281.1,2.44339607]
[1770119845530,10.45733,2282.1,2281.1,2.44339607]
[1770119846830,10.76978849,2282.1,2281.1,2.44339607]
[1770119847031,0.31245849,2281.9,2281.1,2.44339607]
[1770119847839,0.31245849,2281.7,2280.8,2.43834513]
[1770119848830,0.31782981,2281.7,2280.8,2.44328102]
[1770119855234,0.00537132,2281.7,2280.8,2.44328102]
[1770119859043,0.22473132,2281.7,2280.8,2.44328102]
[1770119859245,0.52986434,2281.5,2280.8,2.44328102]
[1770119859639,0.52987434,2281.4,2280.6,2.43834513]
[1770119859841,0.2194,2281.3,2280.6,2.43834513]
[1770119860745,0.31115227,2281.2,2280.4,2.43834513]
[1770119861950,0.53059227,2280.9,2280.2,2.43834513]
[1770119862944,0.21944,2280.9,2280.2,2.43834513]
[1770119863145,0.21944,2280.9,2280.2,2.44333665]
[1770119863445,0.21945,2280.8,2280.2,2.44333665]
[1770119888165,39.50448139,2280.8,2280.2,2.44333665]
[1770119889267,39.28503139,2280.7,2280.2,2.44333665]
[1770119889657,39.64208471,2280.7,2280.2,2.44333665]
[1770119889869,0.2195,2280.3,2279.7,2.40790632]
[1770119890058,41.83384811,2280.2,2279.1,3.93522269]
[1770119890259,49.57603139,2280.1,2279.0,3.93522269]
[1770119890762,49.57962009,2280.1,2279.0,3.94006333]
[1770119891162,0.21953,2280.0,2279.0,3.94006333]
[1770119891668,39.28503139,2279.8,2279.0,0.00484064]
[1770119892167,2.54881672,2279.8,2279.1,2.40790632]
[1770119892563,2.54881672,2279.8,2279.1,1.19345569]
[1770119893567,6.59104433,2280.0,2278.6,4.15718725]
[1770119893568,2.54881672,2279.4,2278.6,0.22196456]
[1770119893766,12.87481672,2279.4,2278.6,0.22196456]
[1770119893962,13.09439672,2279.4,2278.6,0.22196456]
[1770119894564,2.54881672,2279.3,2278.6,0.22504068]
[1770119894767,2.76841672,2279.3,2278.6,0.22504068]
[1770119895170,2.76843672,2279.1,2277.8,3.93522269]
[1770119895367,2.76843672,2279.1,2277.7,3.93522269]
[1770119895572,2.76843672,2279.1,2277.8,2.40790632]
[1770119896170,0.21962,2279.1,2277.8,2.41269491]
[1770119896376,17.31655813,2279.4,2278.3,2.40790632]
[1770119896776,10.332,2279.3,2278.3,2.40790632]
[1770119897271,2.76838672,2279.5,2278.5,2.40790632]
[1770119897477,10.331,2279.4,2278.5,2.40790632]
[1770119897874,3.072,2279.8,2277.9,5.66353593]
[1770119897875,34.42214748,2280.0,2279.3,1.37074141]
[1770119898074,0.0035887,2280.1,2279.4,1.37074141]
[1770119898273,0.0035887,2280.1,2279.4,1.38630766]
[1770119898570,1.37433011,2280.1,2279.4,0.00442238]
[1770119898772,2.56782348,2279.8,2279.4,0.00442238]
[1770119908691,5.92585011,2280.1,2279.4,0.00442238]
[1770119908692,2.57242753,2280.0,2279.4,0.00442238]
[1770119908883,2.57242753,2279.8,2279.4,0.00442238]
[1770119909191,1.37074141,2279.7,2278.9,0.21963]
[1770119909382,2.57242753,2279.4,2278.5,2.6126936]
[1770119909583,2.57242753,2279.4,2278.4,2.8323636]
[1770119909791,2.57242753,2279.2,2278.2,2.6126936]
[1770119910089,2.57242753,2279.2,2278.1,6.5382613]
[1770119910290,2.57242753,2279.2,2278.1,2.61690737]
[1770119910482,5.22505508,2279.8,2278.1,2.61690737]
[1770119910483,2.57242753,2279.0,2278.1,2.61690737]
[1770119910686,2.57242753,2279.0,2278.1,3.92978147]
[1770119910886,2.57242753,2279.0,2278.1,0.00421377]
[1770119911293,2.57242753,2278.8,2278.1,0.00421377]
[1770119911490,1.37074141,2279.2,2277.5,2.6126936]
[1770119911491,2.57242753,2278.6,2277.5,2.6126936]
[1770119911693,2.57242753,2277.9,2276.9,2.6126936]
[1770119911886,2.57242753,2277.9,2276.7,2.6126936]
[1770119911887,2.57242753,2277.7,2276.7,2.6126936]
[1770119912084,43.374,2278.2,2277.0,1.37074141]
[1770119912289,43.374,2278.2,2276.8,6.97420622]
[1770119912290,2.57242753,2278.0,2276.8,6.97420622]
[1770119912589,2.57242753,2277.6,2276.8,0.00516296]
[1770119913190,2.57242753,2277.9,2276.8,1.37590437]
[1770119913389,2.57242753,2277.9,2277.0,1.37074141]
[1770119913888,2.57242753,2277.9,2276.8,1.37590437]
[1770119914491,0.00490622,2278.0,2277.0,0.21981]
[1770119914685,0.00490622,2278.0,2277.1,0.2198]
[1770119914889,0.00490622,2278.0,2277.1,4.04018911]
[1770119915693,0.00490622,2278.0,2277.1,3.82038911]
[1770119915885,2.57733375,2278.0,2276.8,2.61785656]
[1770119916286,2.57733375,2278.0,2277.0,5.81359922]
[1770119916485,2.57733375,2278.0,2276.8,0.00516296]
[1770119918593,2.57242753,2277.8,2276.8,0.00516296]
[1770119919093,2.57242753,2277.8,2276.5,6.132]
[1770119919094,2.57242753,2277.6,2276.0,2.8326036]
[1770119919390,2.57242753,2277.6,2276.2,5.64011863]
[1770119919793,2.57242753,2277.6,2276.0,0.21991]
[1770119920194,2.57242753,2277.6,2276.3,5.60590552]
[1770119920390,2.57242753,2277.6,2276.3,0.21987]
[1770119920596,2.57242753,2277.6,2276.4,0.21987]
[1770119920796,2.57242753,2277.6,2276.4,5.79684123]
[1770119920996,2.57242753,2277.6,2276.4,0.21987]
[1770119921194,2.57242753,2277.6,2276.6,0.21984]
[1770119921399,2.57242753,2277.9,2276.7,0.21984]
[1770119921596,2.57242753,2277.9,2276.7,4.37426774]
[1770119921795,2.57242753,2277.9,2276.7,0.21984]
[1770119923196,2.57242753,2277.9,2276.2,2.8325836]
[1770119923400,2.57242753,2277.9,2276.2,0.21989]
[1770119923597,2.57242753,2277.9,2276.4,5.6203726]
[1770119924399,2.57242753,2277.9,2276.6,0.21985]
[1770119924599,2.57242753,2277.9,2276.7,0.21984]
[1770119924800,2.57242753,2277.9,2276.7,5.82092858]
[1770119925001,2.57242753,2277.9,2276.7,0.21984]
[1770119929107,2.57242753,2277.9,2276.8,0.21983]
[1770119929501,2.57242753,2277.9,2276.9,0.21982]
[1770119929703,2.57242753,2277.9,2277.0,0.21981]
[1770119930505,2.57242753,2277.9,2277.1,0.2198]
[1770119930805,0.00490622,2278.0,2277.2,0.21979]
[1770119931506,2.57714073,2278.0,2277.2,0.21979]
[1770119933005,2.57714073,2278.0,2276.8,0.21983]
[1770119937806,2.57714073,2278.0,2276.7,8.2668749]
[1770119937807,2.57714073,2278.0,2276.9,0.21982]
[1770119938207,2.57714073,2278.0,2276.8,2.6126936]
[1770119938506,2.57714073,2278.0,2277.1,0.2198]
[1770119940311,2.57714073,2278.0,2277.3,0.21978]
[1770119940512,2.57714073,2278.0,2277.3,2.8324736]
[1770119940710,2.57714073,2278.0,2277.2,2.6126936]
[1770119940917,2.57714073,2278.0,2277.1,2.6126936]
[1770119942015,2.57714073,2278.0,2277.0,2.6126936]
[1770119942606,2.57249702,2277.9,2277.0,2.6126936]
[1770119947221,2.57249702,2277.8,2277.0,2.6126936]
[1770119949424,2.79223702,2277.8,2276.9,2.6126936]
[1770119949624,2.57249702,2277.6,2276.8,2.6126936]
[1770119951719,2.57249702,2277.4,2276.6,2.6126936]
[1770119951923,2.57249702,2277.4,2276.5,2.6126936]
[1770119952121,2.57249702,2277.4,2276.6,2.6126936]
[1770119952427,2.57249702,2277.4,2276.5,2.6126936]
[1770119952824,2.57249702,2277.3,2276.5,2.6126936]
[1770119953125,2.57249702,2277.3,2276.4,2.6126936]
[1770119954326,2.79228702,2277.3,2276.3,2.6126936]
[1770119955726,2.79228702,2277.3,2276.1,5.26086564]
[1770119955727,2.57249702,2277.0,2276.0,2.61813234]
[1770119955927,41.78318862,2277.0,2276.0,0.00543874]
[1770119956128,2.57249702,2276.9,2276.0,0.00543874]
[1770119957021,2.57249702,2276.7,2276.0,0.00543874]
[1770119959332,2.57249702,2276.7,2275.5,2.6126936]
[1770119960333,2.57249702,2276.7,2275.5,2.61615741]
[1770119962933,2.57249702,2276.7,2275.6,2.6126936]
[1770119964134,2.57242126,2276.9,2275.7,8.4084734]
[1770119967129,2.57242126,2276.9,2275.7,2.6126936]
[1770119967335,2.57242126,2276.9,2275.6,2.8326436]
[1770119967537,2.57242126,2276.9,2275.6,0.21995]
[1770119967735,2.57242126,2276.8,2275.6,2.8326436]
[1770119967939,2.57242126,2276.8,2275.8,0.21993]
[1770119968432,38.9908716,2277.3,2275.9,4.08156377]
[1770119968639,2.57242126,2277.2,2276.3,0.21987]
[1770119969231,2.57242126,2277.2,2276.0,2.6126936]
[1770119969431,2.57242126,2277.2,2275.9,2.6126936]
[1770119969632,2.57242126,2277.0,2275.7,2.6126936]
[1770119969832,2.57242126,2277.0,2275.6,2.6126936]
[1770119970135,2.57242126,2277.0,2275.7,5.77967129]
[1770119970538,2.57242126,2277.0,2275.6,0.21995]
[1770119970739,2.79224126,2277.0,2275.6,0.21995]
[1770119971236,10.261,2276.9,2275.6,0.21995]
[1770119971440,2.57242126,2276.8,2275.6,0.21995]
[1770119973540,2.79225126,2276.8,2275.6,0.21995]
[1770119977144,2.79225126,2276.8,2275.6,0.26795]
[1770119977644,2.79225126,2276.8,2275.6,0.21995]
[1770119978244,2.79225126,2276.8,2275.6,2.8326436]
[1770119979243,2.57242126,2276.7,2275.6,2.8326436]
[1770119980239,2.57242126,2276.7,2275.7,2.6126936]
[1770119980543,2.57242126,2276.7,2275.7,2.8326336]
[1770119980744,2.57242126,2276.7,2275.9,2.6126936]
[1770119982745,2.57242126,2276.7,2275.9,6.54791629]
[1770119982946,2.57242126,2276.7,2275.9,2.6126936]
[1770119984242,2.57242126,2276.7,2276.0,2.6126936]
[1770119987046,2.57242126,2276.7,2276.1,2.8325936]
[1770119987342,38.9908716,2277.1,2276.1,2.6126936]
[1770119987646,2.57242126,2276.9,2276.2,8.61569878]
[1770119987848,2.57242126,2276.9,2276.2,6.00300518]
[1770119988150,2.57242126,2276.9,2276.2,8.61569878]
[1770119988341,2.57242126,2276.9,2276.3,0.21988]
[1770119988848,2.57242126,2277.1,2276.5,0.21986]
[1770119990049,2.57242126,2277.1,2276.3,2.6126936]
[1770119990246,2.57242126,2277.1,2276.2,2.6126936]
[1770119990847,2.57211952,2277.0,2276.1,2.8325936]
[1770119991048,2.57211952,2276.9,2276.1,2.8325936]
[1770119992050,2.57211952,2276.9,2276.1,0.2199]
[1770119992447,2.57229974,2276.8,2276.0,2.6126936]
[1770119994755,2.57229974,2276.8,2276.0,2.8326036]
[1770120000157,2.57229974,2276.8,2276.0,2.8806036]
[1770120000352,2.57229974,2277.1,2276.4,0.21987]
[1770120000552,2.57229974,2277.1,2276.5,0.21986]
[1770120001758,2.57229974,2277.1,2276.5,2.8325536]
[1770120002259,2.57229974,2277.1,2276.4,2.6126936]
[1770120002459,2.57229974,2277.1,2276.4,2.8325636]
[1770120002759,2.57229974,2277.1,2276.5,5.60746441]
[1770120003851,2.57229974,2277.1,2276.3,2.6126936]
[1770120004053,2.57229974,2277.1,2276.2,2.6126936]
[1770120004452,2.57229974,2277.1,2276.3,8.48522445]
[1770120004855,2.57229974,2277.1,2276.5,2.6126936]
[1770120005063,2.57229974,2277.1,2276.6,0.21985]
[1770120006355,2.57229974,2277.4,2276.6,0.21985]
[1770120006752,2.57229974,2277.1,2276.3,2.6126936]
[1770120006956,2.57229974,2277.1,2276.2,3.93522269]
[1770120006957,2.57229974,2277.0,2276.0,2.6126936]
[1770120007151,2.57229974,2277.0,2275.9,2.6126936]
[1770120007152,2.57229974,2276.8,2275.9,2.6126936]
[1770120007561,2.57229974,2276.8,2276.0,2.6126936]
[1770120007760,2.57229974,2276.8,2276.1,2.8325836]
[1770120016266,2.57229974,2276.8,2276.2,2.6126936]
[1770120018063,1.35029975,2276.8,2276.2,2.6126936]
[1770120018364,1.35029975,2276.8,2276.2,2.6606936]
[1770120019465,1.35029975,2276.8,2276.2,0.048]
[1770120022366,1.35029975,2276.8,2276.1,2.8325836]
[1770120022967,2.34035482,2277.0,2276.4,2.6126936]
[1770120023166,2.34035482,2277.2,2276.4,3.50202266]
[1770120024160,2.34035482,2277.2,2276.6,0.21985]
[1770120024360,2.34035482,2277.4,2276.9,1.37225293]
[1770120024564,2.34035482,2277.4,2276.7,9.20590581]
[1770120024765,2.34035482,2277.4,2276.7,5.1018997]
[1770120025766,2.34035482,2277.7,2276.9,1.37225293]
[1770120026264,2.34035482,2277.7,2277.1,1.37225293]
[1770120026460,2.34035482,2277.7,2277.1,1.37752859]
[1770120026864,2.34035482,2277.7,2277.1,4.21002219]
[1770120027266,2.34035482,2277.7,2277.1,1.59732859]
[1770120027763,2.34035482,2277.9,2277.1,2.55456546]
[1770120029862,0.00490622,2278.0,2277.4,0.93643317]
[1770120030067,0.00490622,2278.0,2277.5,2.3086861]
[1770120030468,0.00490622,2278.0,2277.5,0.93643317]
[1770120030762,2.34035482,2278.5,2277.7,0.93445671]
[1770120030966,2.34035482,2278.8,2277.9,0.93445671]
[1770120031165,2.34035482,2278.8,2278.0,0.93445671]
[1770120031367,2.34035482,2278.8,2278.0,6.46476417]
[1770120031861,2.34503292,2278.8,2278.1,0.2197]
[1770120033165,2.34035482,2279.1,2278.2,1.1603642]
[1770120033470,2.34035482,2279.1,2278.2,3.92160033]
[1770120034266,2.34415464,2279.1,2278.2,3.92160033]
[1770120034969,2.34415464,2279.1,2278.2,4.14130033]
[1770120035164,2.34415464,2279.1,2278.3,0.95037809]
[1770120035365,0.00379982,2279.1,2278.3,0.95037809]
[1770120035670,0.00379982,2279.1,2278.0,7.84783904]
[1770120035671,0.00379982,2279.1,2278.4,6.43253366]
[1770120036070,0.00379982,2279.1,2278.4,0.95037809]
[1770120036267,0.00379982,2279.1,2278.5,6.61628818]